[Event "*** Titled Tuesday Blitz"]
[Site "Chess.com"]
[Date "2021.03.16"]
[Round "5"]
[White "TwentyHourADay"]
[Black "politeplayer"]
[Result "0-1"]
[WhiteElo "2385"]
[BlackElo "2246"]
[TimeControl "180+1"]
[EndTime "10:53:27 PDT"]
[Termination "politeplayer won by checkmate"]

1. d4 {[%clk 0:03:00.9]} 1... d5 {[%clk 0:02:58.2]} 2. Nf3 {[%clk 0:02:57.1]}
2... e6 {[%clk 0:02:56.8]} 3. Bf4 {[%clk 0:02:56.5]} 3... Bd6 {[%clk 0:02:56.4]}
4. Bg3 {[%clk 0:02:56.5]} 4... Nf6 {[%clk 0:02:56.1]} 5. e3 {[%clk 0:02:56.4]}
5... O-O {[%clk 0:02:55.3]} 6. c4 {[%clk 0:02:54.9]} 6... c5 {[%clk 0:02:45.6]}
7. Nc3 {[%clk 0:02:52.3]} 7... cxd4 {[%clk 0:02:42.4]} 8. exd4 {[%clk
0:02:39.8]} 8... Bxg3 {[%clk 0:02:27.8]} 9. hxg3 {[%clk 0:02:39.4]} 9... Nc6
{[%clk 0:02:25.8]} 10. cxd5 {[%clk 0:02:33.1]} 10... exd5 {[%clk 0:02:22.7]} 11.
Be2 {[%clk 0:02:29.2]} 11... Bf5 {[%clk 0:02:18.7]} 12. O-O {[%clk 0:02:27.9]}
12... Re8 {[%clk 0:02:12.2]} 13. Re1 {[%clk 0:02:16]} 13... Qb6 {[%clk
0:02:09.4]} 14. Na4 {[%clk 0:02:08.5]} 14... Qa5 {[%clk 0:01:50.1]} 15. a3
{[%clk 0:02:07.5]} 15... Rac8 {[%clk 0:01:43.7]} 16. b4 {[%clk 0:02:05.9]} 16...
Qd8 {[%clk 0:01:36.1]} 17. Rc1 {[%clk 0:02:01.4]} 17... a6 {[%clk 0:01:26]} 18.
Nc5 {[%clk 0:01:45.5]} 18... Rc7 {[%clk 0:01:17.2]} 19. Nxb7 {[%clk 0:01:28.8]}
19... Rxb7 {[%clk 0:01:06.6]} 20. Rxc6 {[%clk 0:01:27.8]} 20... a5 {[%clk
0:00:53.1]} 21. b5 {[%clk 0:01:26.7]} 21... a4 {[%clk 0:00:53.5]} 22. Ne5 {[%clk
0:01:21.7]} 22... Nd7 {[%clk 0:00:41.1]} 23. g4 {[%clk 0:01:12.1]} 23... Nxe5
{[%clk 0:00:36.9]} 24. dxe5 {[%clk 0:01:11.5]} 24... Bd7 {[%clk 0:00:37.2]} 25.
Qxd5 {[%clk 0:01:00.8]} 25... Bxc6 {[%clk 0:00:34.5]} 26. Qxc6 {[%clk
0:00:59.5]} 26... Rbe7 {[%clk 0:00:24.4]} 27. Bf3 {[%clk 0:00:47.4]} 27... Rxe5
{[%clk 0:00:20.7]} 28. Rxe5 {[%clk 0:00:47.6]} 28... Rxe5 {[%clk 0:00:20.4]} 29.
b6 {[%clk 0:00:48.4]} 29... Re1+ {[%clk 0:00:19.1]} 30. Kh2 {[%clk 0:00:47.2]}
30... Qh4# {[%clk 0:00:18.4]} 0-1

[Event "*** Titled Tuesday Blitz"]
[Site "Chess.com"]
[Date "2021.03.16"]
[Round "5"]
[White "hypert"]
[Black "AsaHoffmann"]
[Result "1-0"]
[WhiteElo "2564"]
[BlackElo "2357"]
[TimeControl "180+1"]
[EndTime "10:53:35 PDT"]
[Termination "hypert won on time"]

1. e4 {[%clk 0:03:00.9]} 1... d6 {[%clk 0:02:16.5]} 2. Nc3 {[%clk 0:03:01.8]}
2... c6 {[%clk 0:02:13.6]} 3. d4 {[%clk 0:03:02.1]} 3... Nf6 {[%clk 0:02:12]} 4.
Bd3 {[%clk 0:03:01.1]} 4... e5 {[%clk 0:02:07.8]} 5. Nge2 {[%clk 0:03:00]} 5...
Be7 {[%clk 0:02:00.9]} 6. f3 {[%clk 0:02:59.4]} 6... Nbd7 {[%clk 0:01:58.5]} 7.
Be3 {[%clk 0:02:57.8]} 7... d5 {[%clk 0:01:58.3]} 8. exd5 {[%clk 0:02:56.2]}
8... Nxd5 {[%clk 0:01:52]} 9. Nxd5 {[%clk 0:02:55.7]} 9... cxd5 {[%clk
0:01:52.2]} 10. dxe5 {[%clk 0:02:48.3]} 10... Nxe5 {[%clk 0:01:51.3]} 11. Bb5+
{[%clk 0:02:48.2]} 11... Kf8 {[%clk 0:01:45.9]} 12. O-O {[%clk 0:02:43.5]} 12...
Nc4 {[%clk 0:01:36.2]} 13. Bd4 {[%clk 0:02:35.2]} 13... Be6 {[%clk 0:01:34.4]}
14. b3 {[%clk 0:02:32.9]} 14... Nd6 {[%clk 0:01:33.2]} 15. Bd3 {[%clk
0:02:30.7]} 15... Nf5 {[%clk 0:01:32.2]} 16. Bxf5 {[%clk 0:02:26.9]} 16... Bxf5
{[%clk 0:01:31.2]} 17. Ng3 {[%clk 0:02:25.5]} 17... Be6 {[%clk 0:01:29.5]} 18.
f4 {[%clk 0:02:23.1]} 18... Bf6 {[%clk 0:01:27.6]} 19. f5 {[%clk 0:02:21.5]}
19... Bc8 {[%clk 0:01:19.7]} 20. Bxf6 {[%clk 0:02:13.3]} 20... gxf6 {[%clk
0:01:07.2]} 21. Qd2 {[%clk 0:02:12.5]} 21... h5 {[%clk 0:01:06]} 22. Rad1 {[%clk
0:02:08.2]} 22... h4 {[%clk 0:01:04.9]} 23. Ne2 {[%clk 0:02:08.1]} 23... a5
{[%clk 0:00:53.4]} 24. a4 {[%clk 0:02:07.3]} 24... b6 {[%clk 0:00:52.3]} 25. Rf3
{[%clk 0:01:55.6]} 25... Ba6 {[%clk 0:00:47.6]} 26. Nd4 {[%clk 0:01:52]} 26...
Rc8 {[%clk 0:00:46.9]} 27. Rh3 {[%clk 0:01:46]} 27... Qd6 {[%clk 0:00:45.9]} 28.
Qf2 {[%clk 0:01:44.9]} 28... Qe5 {[%clk 0:00:37.9]} 29. Rxh4 {[%clk 0:01:37.8]}
29... Rxh4 {[%clk 0:00:28.6]} 30. Qxh4 {[%clk 0:01:38.7]} 30... Rc3 {[%clk
0:00:18.2]} 31. Re1 {[%clk 0:01:32.9]} 31... Re3 {[%clk 0:00:17.3]} 32. Qh8+
{[%clk 0:01:24.2]} 32... Ke7 {[%clk 0:00:16.8]} 33. Nc6+ {[%clk 0:01:23.7]}
33... Kd6 {[%clk 0:00:16.7]} 34. Nxe5 {[%clk 0:01:22.8]} 34... Rxe1+ {[%clk
0:00:16.1]} 35. Kf2 {[%clk 0:01:23.3]} 35... Rxe5 {[%clk 0:00:15.7]} 36. Qd8+
{[%clk 0:01:20.4]} 36... Kc5 {[%clk 0:00:15.5]} 37. Qxf6 {[%clk 0:01:17.1]}
37... Kd4 {[%clk 0:00:13.1]} 38. Qxb6+ {[%clk 0:01:14.4]} 1-0

[Event "*** Titled Tuesday Blitz"]
[Site "Chess.com"]
[Date "2021.03.16"]
[Round "5"]
[White "GMAkobianSTL"]
[Black "Fighter008"]
[Result "0-1"]
[WhiteElo "2818"]
[BlackElo "2641"]
[TimeControl "180+1"]
[EndTime "10:53:48 PDT"]
[Termination "Fighter008 won by checkmate"]

1. d4 {[%clk 0:03:00.9]} 1... Nf6 {[%clk 0:02:58.3]} 2. c4 {[%clk 0:03:00.2]}
2... g6 {[%clk 0:02:58.6]} 3. Nc3 {[%clk 0:03:00.1]} 3... Bg7 {[%clk 0:02:59]}
4. Bg5 {[%clk 0:03:00.2]} 4... O-O {[%clk 0:02:58.5]} 5. e3 {[%clk 0:03:00.3]}
5... h6 {[%clk 0:02:58.8]} 6. Bh4 {[%clk 0:03:00]} 6... d6 {[%clk 0:02:59.4]} 7.
Nf3 {[%clk 0:02:59.6]} 7... Qe8 {[%clk 0:02:59.3]} 8. Be2 {[%clk 0:02:57.1]}
8... e5 {[%clk 0:02:58.9]} 9. O-O {[%clk 0:02:56.7]} 9... c6 {[%clk 0:02:39.7]}
10. Rc1 {[%clk 0:02:51.7]} 10... Nbd7 {[%clk 0:02:37.7]} 11. Qc2 {[%clk
0:02:49.7]} 11... Nh7 {[%clk 0:02:33.2]} 12. Ne4 {[%clk 0:02:44.3]} 12... Qe6
{[%clk 0:02:22.2]} 13. d5 {[%clk 0:02:31.3]} 13... cxd5 {[%clk 0:02:21.1]} 14.
cxd5 {[%clk 0:02:31.3]} 14... Qxd5 {[%clk 0:02:21.7]} 15. Rfd1 {[%clk
0:02:28.1]} 15... Qa5 {[%clk 0:02:20.9]} 16. Nxd6 {[%clk 0:02:27.5]} 16... g5
{[%clk 0:02:01.8]} 17. Bg3 {[%clk 0:02:26]} 17... Nb6 {[%clk 0:02:01.9]} 18. a3
{[%clk 0:02:04.3]} 18... f5 {[%clk 0:01:51.7]} 19. b4 {[%clk 0:01:55.1]} 19...
Qxa3 {[%clk 0:01:50.4]} 20. Ra1 {[%clk 0:01:53.8]} 20... Qxb4 {[%clk 0:01:48.3]}
21. Rdb1 {[%clk 0:01:53.4]} 21... Qxd6 {[%clk 0:01:47.1]} 22. Nd4 {[%clk
0:01:26]} 22... Qg6 {[%clk 0:01:39.8]} 23. Nb5 {[%clk 0:01:23.5]} 23... Be6
{[%clk 0:01:33.6]} 24. Nxa7 {[%clk 0:01:21.3]} 24... Nd5 {[%clk 0:01:29]} 25.
Rxb7 {[%clk 0:01:20.5]} 25... e4 {[%clk 0:01:20.9]} 26. Ra6 {[%clk 0:01:19]}
26... f4 {[%clk 0:01:17.5]} 27. Bg4 {[%clk 0:01:08.1]} 27... Rae8 {[%clk
0:00:59.9]} 28. Qc6 {[%clk 0:00:58.9]} 28... fxg3 {[%clk 0:00:52.7]} 29. Bxe6+
{[%clk 0:00:58.5]} 29... Rxe6 {[%clk 0:00:52.6]} 30. Qxd5 {[%clk 0:00:57.6]}
30... gxf2+ {[%clk 0:00:35.6]} 31. Kf1 {[%clk 0:00:57.3]} 31... Rf6 {[%clk
0:00:32.3]} 32. Nb5 {[%clk 0:00:44.4]} 32... Nf8 {[%clk 0:00:27.3]} 33. Nd4
{[%clk 0:00:41.4]} 33... Qh5 {[%clk 0:00:23.1]} 34. Nxe6 {[%clk 0:00:40.8]}
34... Qe2+ {[%clk 0:00:22]} 35. Kxe2 {[%clk 0:00:39.8]} 35... f1=Q+ {[%clk
0:00:22]} 36. Kd2 {[%clk 0:00:37]} 36... Rf2# {[%clk 0:00:21.9]} 0-1

[Event "*** Titled Tuesday Blitz"]
[Site "Chess.com"]
[Date "2021.03.16"]
[Round "5"]
[White "mbachez"]
[Black "sokidze"]
[Result "1-0"]
[WhiteElo "2493"]
[BlackElo "2687"]
[TimeControl "180+1"]
[EndTime "10:53:51 PDT"]
[Termination "mbachez won on time"]

1. e4 {[%clk 0:03:00.9]} 1... c5 {[%clk 0:02:59.7]} 2. Nf3 {[%clk 0:03:00.4]}
2... Nc6 {[%clk 0:02:59.4]} 3. Bb5 {[%clk 0:02:59.7]} 3... g6 {[%clk 0:02:59.6]}
4. c3 {[%clk 0:02:59.4]} 4... Bg7 {[%clk 0:02:49.2]} 5. d4 {[%clk 0:02:58.8]}
5... cxd4 {[%clk 0:02:24]} 6. cxd4 {[%clk 0:02:57.2]} 6... Nf6 {[%clk
0:02:16.1]} 7. Nc3 {[%clk 0:02:55.8]} 7... d5 {[%clk 0:02:12.6]} 8. Ne5 {[%clk
0:02:55.1]} 8... O-O {[%clk 0:01:38]} 9. Nxc6 {[%clk 0:02:48.3]} 9... bxc6
{[%clk 0:01:38.2]} 10. Bxc6 {[%clk 0:02:48.3]} 10... Ba6 {[%clk 0:01:33.6]} 11.
Bxa8 {[%clk 0:02:47]} 11... Qxa8 {[%clk 0:01:33.4]} 12. e5 {[%clk 0:02:46.8]}
12... Ne4 {[%clk 0:01:33.6]} 13. f3 {[%clk 0:02:45.1]} 13... Nxc3 {[%clk
0:01:30.7]} 14. bxc3 {[%clk 0:02:45.3]} 14... Qc8 {[%clk 0:01:31]} 15. Qd2
{[%clk 0:02:38]} 15... f6 {[%clk 0:01:22.8]} 16. exf6 {[%clk 0:02:35.1]} 16...
Bxf6 {[%clk 0:01:23]} 17. Kf2 {[%clk 0:02:34.8]} 17... Qf5 {[%clk 0:00:56]} 18.
h4 {[%clk 0:02:21.3]} 18... e5 {[%clk 0:00:46.8]} 19. Ba3 {[%clk 0:02:19.8]}
19... Rf7 {[%clk 0:00:33.5]} 20. Rab1 {[%clk 0:02:15.6]} 20... exd4 {[%clk
0:00:27.3]} 21. Rb8+ {[%clk 0:02:13.6]} 21... Kg7 {[%clk 0:00:27.4]} 22. h5
{[%clk 0:02:05.9]} 22... gxh5 {[%clk 0:00:22]} 23. Bc1 {[%clk 0:01:59.4]} 23...
Qg6 {[%clk 0:00:17.8]} 24. cxd4 {[%clk 0:01:59.1]} 24... Rc7 {[%clk 0:00:15.1]}
25. Rb2 {[%clk 0:01:32.3]} 25... Rc4 {[%clk 0:00:15]} 26. Qe2 {[%clk 0:01:13.7]}
26... Be5 {[%clk 0:00:10.1]} 27. Qxe5+ {[%clk 0:01:12.6]} 27... Kf7 {[%clk
0:00:08.2]} 28. Qf4+ {[%clk 0:01:11.2]} 28... Ke7 {[%clk 0:00:04.2]} 29. Re1+
{[%clk 0:01:11]} 29... Kd7 {[%clk 0:00:04.7]} 30. Qe5 {[%clk 0:01:07.8]} 30...
Rc2+ {[%clk 0:00:03.6]} 31. Rxc2 {[%clk 0:01:07.3]} 31... Qxc2+ {[%clk
0:00:04.5]} 32. Kg1 {[%clk 0:01:07.2]} 32... Bc4 {[%clk 0:00:05.4]} 33. Qe7+
{[%clk 0:01:06]} 33... Kc6 {[%clk 0:00:05.7]} 34. Qc5+ {[%clk 0:01:06.1]} 34...
Kb7 {[%clk 0:00:05.6]} 35. Re7+ {[%clk 0:01:06.4]} 1-0

[Event "*** Titled Tuesday Blitz"]
[Site "Chess.com"]
[Date "2021.03.16"]
[Round "5"]
[White "SF-96"]
[Black "VinzentSpitzl"]
[Result "1-0"]
[WhiteElo "2596"]
[BlackElo "2362"]
[TimeControl "180+1"]
[EndTime "10:53:56 PDT"]
[Termination "SF-96 won on time"]

1. e4 {[%clk 0:03:00]} 1... c5 {[%clk 0:02:53.3]} 2. Nf3 {[%clk 0:02:58.7]} 2...
Nc6 {[%clk 0:02:52]} 3. d4 {[%clk 0:02:59.2]} 3... cxd4 {[%clk 0:02:52.3]} 4.
Nxd4 {[%clk 0:03:00.1]} 4... e6 {[%clk 0:02:52.6]} 5. Nc3 {[%clk 0:02:59.3]}
5... Qc7 {[%clk 0:02:52.5]} 6. Be3 {[%clk 0:02:57.4]} 6... a6 {[%clk 0:02:51.2]}
7. Nxc6 {[%clk 0:02:56.7]} 7... bxc6 {[%clk 0:02:47.8]} 8. Bd3 {[%clk
0:02:53.3]} 8... d5 {[%clk 0:02:46.3]} 9. O-O {[%clk 0:02:52.7]} 9... Nf6 {[%clk
0:02:43.2]} 10. f4 {[%clk 0:02:48.2]} 10... Bb4 {[%clk 0:02:28.2]} 11. e5 {[%clk
0:02:35.9]} 11... Nd7 {[%clk 0:02:23]} 12. Na4 {[%clk 0:02:32.6]} 12... Bb7
{[%clk 0:02:13.3]} 13. c4 {[%clk 0:02:18.9]} 13... c5 {[%clk 0:01:35.9]} 14.
cxd5 {[%clk 0:02:02.9]} 14... exd5 {[%clk 0:01:32]} 15. a3 {[%clk 0:01:53.5]}
15... Ba5 {[%clk 0:01:27.6]} 16. Rc1 {[%clk 0:01:52.4]} 16... Bb6 {[%clk
0:01:01]} 17. Bf5 {[%clk 0:01:44.4]} 17... Ba7 {[%clk 0:00:28.3]} 18. Bxd7+
{[%clk 0:01:37.5]} 18... Qxd7 {[%clk 0:00:28.1]} 19. Bxc5 {[%clk 0:01:28.2]}
19... Bc6 {[%clk 0:00:28.3]} 20. Nb6 {[%clk 0:01:15.2]} 20... Bxb6 {[%clk
0:00:28.2]} 21. Bxb6 {[%clk 0:01:16.1]} 21... O-O {[%clk 0:00:28.5]} 22. Bd4
{[%clk 0:01:12.3]} 22... Rab8 {[%clk 0:00:15.3]} 23. f5 {[%clk 0:01:09.5]} 23...
f6 {[%clk 0:00:12.5]} 24. exf6 {[%clk 0:00:58.4]} 24... gxf6 {[%clk 0:00:12.6]}
25. Rf4 {[%clk 0:00:53.4]} 25... Kh8 {[%clk 0:00:09.2]} 26. Qh5 {[%clk
0:00:49.7]} 26... Qd6 {[%clk 0:00:04.6]} 27. Rh4 {[%clk 0:00:48.1]} 27... Rb7
{[%clk 0:00:01.6]} 28. Qh6 {[%clk 0:00:35.4]} 1-0

[Event "*** Titled Tuesday Blitz"]
[Site "Chess.com"]
[Date "2021.03.16"]
[Round "5"]
[White "jacky72"]
[Black "Orest_Vovk"]
[Result "1-0"]
[WhiteElo "2704"]
[BlackElo "2478"]
[TimeControl "180+1"]
[EndTime "10:53:58 PDT"]
[Termination "jacky72 won on time"]

1. d4 {[%clk 0:03:00.9]} 1... h6 {[%clk 0:02:58.1]} 2. c4 {[%clk 0:02:52.6]}
2... g5 {[%clk 0:02:58.1]} 3. h4 {[%clk 0:02:52.3]} 3... g4 {[%clk 0:02:56.6]}
4. h5 {[%clk 0:02:47.5]} 4... g3 {[%clk 0:02:51.8]} 5. fxg3 {[%clk 0:02:46.9]}
5... Bg7 {[%clk 0:02:50.3]} 6. Nf3 {[%clk 0:02:45.4]} 6... c5 {[%clk 0:02:48.8]}
7. d5 {[%clk 0:02:41.2]} 7... d6 {[%clk 0:02:47.9]} 8. Nc3 {[%clk 0:02:41.2]}
8... Bxc3+ {[%clk 0:02:47.3]} 9. bxc3 {[%clk 0:02:41]} 9... Qa5 {[%clk
0:02:47.7]} 10. Qc2 {[%clk 0:02:33]} 10... Nf6 {[%clk 0:02:42.2]} 11. Bd2 {[%clk
0:02:26.3]} 11... Bg4 {[%clk 0:02:31.4]} 12. e4 {[%clk 0:02:26.6]} 12... Nbd7
{[%clk 0:02:30.6]} 13. Be2 {[%clk 0:02:23.7]} 13... Nxh5 {[%clk 0:02:18.1]} 14.
Rh4 {[%clk 0:02:12.7]} 14... Nhf6 {[%clk 0:02:11.7]} 15. Bxh6 {[%clk 0:01:53.8]}
15... Nxe4 {[%clk 0:01:37.8]} 16. Rxg4 {[%clk 0:01:51.8]} 16... Ndf6 {[%clk
0:01:11.7]} 17. Rh4 {[%clk 0:01:46.8]} 17... Nxg3 {[%clk 0:01:07.5]} 18. Bd3
{[%clk 0:01:35.7]} 18... O-O-O {[%clk 0:00:57.9]} 19. Kf2 {[%clk 0:01:35.4]}
19... Rdg8 {[%clk 0:00:56.1]} 20. Bg5 {[%clk 0:01:27.9]} 20... Rxh4 {[%clk
0:00:52.6]} 21. Bxh4 {[%clk 0:01:28.2]} 21... Ng4+ {[%clk 0:00:51.9]} 22. Kg1
{[%clk 0:01:28.3]} 22... Ne3 {[%clk 0:00:45.4]} 23. Qd2 {[%clk 0:01:17.5]} 23...
Ngf5 {[%clk 0:00:32.7]} 24. Bxf5+ {[%clk 0:01:17]} 24... Nxf5 {[%clk 0:00:33.6]}
25. Re1 {[%clk 0:01:12.7]} 25... Qa4 {[%clk 0:00:19.2]} 26. Qf4 {[%clk
0:01:10.8]} 26... Nxh4 {[%clk 0:00:17.7]} 27. Nxh4 {[%clk 0:01:09.3]} 27... f6
{[%clk 0:00:12.7]} 28. Nf5 {[%clk 0:01:03.2]} 28... Kb8 {[%clk 0:00:08]} 29.
Nxe7 {[%clk 0:01:01.6]} 29... Rd8 {[%clk 0:00:08.2]} 30. Nf5 {[%clk 0:00:57.6]}
30... a6 {[%clk 0:00:06]} 31. Nxd6 {[%clk 0:00:57.7]} 31... Ka7 {[%clk
0:00:06.3]} 32. Qxf6 {[%clk 0:00:50.6]} 32... Rd7 {[%clk 0:00:03.4]} 33. Nc8+
{[%clk 0:00:49.7]} 33... Kb8 {[%clk 0:00:03.2]} 34. Nb6 {[%clk 0:00:44.6]} 1-0

[Event "*** Titled Tuesday Blitz"]
[Site "Chess.com"]
[Date "2021.03.16"]
[Round "5"]
[White "PushingpawnsNYC"]
[Black "chessmadara"]
[Result "0-1"]
[WhiteElo "2287"]
[BlackElo "2167"]
[TimeControl "180+1"]
[EndTime "10:54:05 PDT"]
[Termination "chessmadara won on time"]

1. e4 {[%clk 0:02:52]} 1... c5 {[%clk 0:02:59.9]} 2. Nc3 {[%clk 0:02:52]} 2...
d6 {[%clk 0:02:59]} 3. Bc4 {[%clk 0:02:50.1]} 3... g6 {[%clk 0:02:56.8]} 4. Qf3
{[%clk 0:02:49.2]} 4... e6 {[%clk 0:02:55.4]} 5. d3 {[%clk 0:01:47.2]} 5... Bg7
{[%clk 0:02:54.7]} 6. h4 {[%clk 0:01:46.4]} 6... Nc6 {[%clk 0:02:43.4]} 7. Bb5
{[%clk 0:01:33.2]} 7... Bd7 {[%clk 0:02:42]} 8. Bxc6 {[%clk 0:01:30.5]} 8...
Bxc6 {[%clk 0:02:41.3]} 9. h5 {[%clk 0:01:31.4]} 9... Ne7 {[%clk 0:02:37.9]} 10.
h6 {[%clk 0:01:21.4]} 10... Be5 {[%clk 0:02:32.3]} 11. Bg5 {[%clk 0:01:19.3]}
11... f5 {[%clk 0:02:19.5]} 12. O-O-O {[%clk 0:01:13]} 12... O-O {[%clk
0:02:13.9]} 13. Qe2 {[%clk 0:01:09]} 13... b5 {[%clk 0:02:08.6]} 14. f4 {[%clk
0:01:06.8]} 14... Bf6 {[%clk 0:02:01.2]} 15. Nf3 {[%clk 0:01:03.6]} 15... b4
{[%clk 0:01:58.1]} 16. Nb1 {[%clk 0:01:00.4]} 16... a5 {[%clk 0:00:57.8]} 17.
Bxf6 {[%clk 0:00:11.2]} 17... Rxf6 {[%clk 0:00:58.7]} 18. e5 {[%clk 0:00:09.5]}
18... Rf8 {[%clk 0:00:57.8]} 19. exd6 {[%clk 0:00:08.7]} 19... Qxd6 {[%clk
0:00:58.7]} 20. Ng5 {[%clk 0:00:09.2]} 20... Bd5 {[%clk 0:00:55.3]} 21. g3
{[%clk 0:00:08.1]} 21... Bxa2 {[%clk 0:00:45.5]} 22. Rhe1 {[%clk 0:00:08.1]}
22... Nc6 {[%clk 0:00:39.3]} 23. c3 {[%clk 0:00:05.9]} 23... Bxb1 {[%clk
0:00:34.3]} 24. Kxb1 {[%clk 0:00:05.1]} 24... bxc3 {[%clk 0:00:34.3]} 25. Qxe6+
{[%clk 0:00:04.5]} 25... Qxe6 {[%clk 0:00:33.7]} 26. Nxe6 {[%clk 0:00:02.8]}
26... Nd4 {[%clk 0:00:24.3]} 27. Nxf8 {[%clk 0:00:01.8]} 27... c2+ {[%clk
0:00:23.8]} 28. Kc1 {[%clk 0:00:02.3]} 28... cxd1=Q+ {[%clk 0:00:23.9]} 29. Rxd1
{[%clk 0:00:02.6]} 29... Kxf8 {[%clk 0:00:23.8]} 0-1

[Event "*** Titled Tuesday Blitz"]
[Site "Chess.com"]
[Date "2021.03.16"]
[Round "5"]
[White "juli2512"]
[Black "Cptn2"]
[Result "1-0"]
[WhiteElo "2219"]
[BlackElo "2475"]
[TimeControl "180+1"]
[EndTime "10:54:06 PDT"]
[Termination "juli2512 won by resignation"]

1. e4 {[%clk 0:02:53.2]} 1... c5 {[%clk 0:02:55.6]} 2. d3 {[%clk 0:02:53.1]}
2... Nc6 {[%clk 0:02:54.8]} 3. Nc3 {[%clk 0:02:53.6]} 3... g6 {[%clk 0:02:53.5]}
4. g3 {[%clk 0:02:53.3]} 4... Bg7 {[%clk 0:02:53.2]} 5. Bg2 {[%clk 0:02:53.6]}
5... e6 {[%clk 0:02:54.1]} 6. f4 {[%clk 0:02:52.2]} 6... Nge7 {[%clk 0:02:55]}
7. Nf3 {[%clk 0:02:51.9]} 7... d5 {[%clk 0:02:55.9]} 8. O-O {[%clk 0:02:51.4]}
8... O-O {[%clk 0:02:56.4]} 9. e5 {[%clk 0:02:50.8]} 9... f6 {[%clk 0:02:54.7]}
10. exf6 {[%clk 0:02:49.1]} 10... Bxf6 {[%clk 0:02:55.6]} 11. Re1 {[%clk
0:02:47.9]} 11... Nf5 {[%clk 0:02:54.3]} 12. Bd2 {[%clk 0:02:46.4]} 12... Qb6
{[%clk 0:02:47.1]} 13. Rb1 {[%clk 0:02:44.1]} 13... c4+ {[%clk 0:02:45.6]} 14.
Kh1 {[%clk 0:02:41]} 14... cxd3 {[%clk 0:02:45.8]} 15. cxd3 {[%clk 0:02:39]}
15... Qa6 {[%clk 0:02:46.7]} 16. Bc1 {[%clk 0:02:28.4]} 16... Bd7 {[%clk
0:02:40.7]} 17. g4 {[%clk 0:02:20.8]} 17... Nh4 {[%clk 0:02:22.5]} 18. Nxh4
{[%clk 0:02:19.7]} 18... Bxh4 {[%clk 0:02:23.4]} 19. Rf1 {[%clk 0:02:18.5]}
19... Nb4 {[%clk 0:02:23]} 20. d4 {[%clk 0:02:10.3]} 20... Nxa2 {[%clk
0:02:18.7]} 21. Qb3 {[%clk 0:01:59.6]} 21... Nxc3 {[%clk 0:02:13.6]} 22. bxc3
{[%clk 0:01:59.5]} 22... b6 {[%clk 0:02:13.5]} 23. f5 {[%clk 0:01:49.8]} 23...
Qd3 {[%clk 0:01:54.7]} 24. Bh6 {[%clk 0:01:44.6]} 24... gxf5 {[%clk 0:00:53.2]}
25. Bxf8 {[%clk 0:01:40.4]} 25... Rxf8 {[%clk 0:00:54.1]} 26. gxf5 {[%clk
0:01:31.4]} 26... Rxf5 {[%clk 0:00:55]} 27. Rxf5 {[%clk 0:01:29.7]} 27... Qxf5
{[%clk 0:00:55.9]} 28. Rf1 {[%clk 0:01:27.2]} 28... Qh5 {[%clk 0:00:42.8]} 29.
Qa3 {[%clk 0:01:20.6]} 29... Qe8 {[%clk 0:00:42.1]} 30. Qxa7 {[%clk 0:01:16.8]}
30... b5 {[%clk 0:00:43]} 31. Qc7 {[%clk 0:01:11.3]} 31... Be7 {[%clk
0:00:41.2]} 32. Qg3+ {[%clk 0:01:06.5]} 32... Kh8 {[%clk 0:00:39.5]} 33. Qe5+
{[%clk 0:01:01.8]} 33... Kg8 {[%clk 0:00:39.3]} 34. Bh3 {[%clk 0:01:01.1]} 34...
Bf8 {[%clk 0:00:36.6]} 35. Rg1+ {[%clk 0:00:58.2]} 35... Kf7 {[%clk 0:00:35.1]}
36. Bg4 {[%clk 0:00:55.3]} 36... Ke7 {[%clk 0:00:34.3]} 37. Bh5 {[%clk
0:00:51.9]} 37... Qc8 {[%clk 0:00:30.7]} 38. Rf1 {[%clk 0:00:47.5]} 38... Kd8
{[%clk 0:00:10.5]} 39. Rxf8+ {[%clk 0:00:45.2]} 1-0

[Event "*** Titled Tuesday Blitz"]
[Site "Chess.com"]
[Date "2021.03.16"]
[Round "5"]
[White "ChessQueen"]
[Black "Djager97"]
[Result "1-0"]
[WhiteElo "2710"]
[BlackElo "2480"]
[TimeControl "180+1"]
[EndTime "10:54:07 PDT"]
[Termination "ChessQueen won by resignation"]

1. e4 {[%clk 0:03:00.9]} 1... e5 {[%clk 0:02:59.9]} 2. d4 {[%clk 0:03:00]} 2...
exd4 {[%clk 0:02:58.5]} 3. c3 {[%clk 0:03:00]} 3... d5 {[%clk 0:02:52.5]} 4.
Qxd4 {[%clk 0:02:53.2]} 4... dxe4 {[%clk 0:02:48.4]} 5. Qxe4+ {[%clk 0:02:51.4]}
5... Be7 {[%clk 0:02:47.3]} 6. Nf3 {[%clk 0:02:36.8]} 6... Nf6 {[%clk 0:02:47]}
7. Qa4+ {[%clk 0:02:37]} 7... Bd7 {[%clk 0:02:45.3]} 8. Bb5 {[%clk 0:02:33.3]}
8... c6 {[%clk 0:02:42.6]} 9. Be2 {[%clk 0:02:32.5]} 9... O-O {[%clk 0:02:38.7]}
10. O-O {[%clk 0:02:32.6]} 10... c5 {[%clk 0:02:38.4]} 11. Qb3 {[%clk
0:02:28.8]} 11... Bc6 {[%clk 0:02:37.9]} 12. Ne5 {[%clk 0:02:24.6]} 12... Qc7
{[%clk 0:02:16]} 13. Nxc6 {[%clk 0:02:19.7]} 13... Nxc6 {[%clk 0:02:16.9]} 14.
Na3 {[%clk 0:02:11.9]} 14... a6 {[%clk 0:02:15.1]} 15. Be3 {[%clk 0:02:09.5]}
15... b5 {[%clk 0:02:11.1]} 16. Qc2 {[%clk 0:02:05.5]} 16... Nd5 {[%clk
0:02:05]} 17. Bf3 {[%clk 0:01:53.3]} 17... Nxe3 {[%clk 0:02:01.7]} 18. fxe3
{[%clk 0:01:53.4]} 18... Rad8 {[%clk 0:01:58.8]} 19. Qf2 {[%clk 0:01:36.2]}
19... Ne5 {[%clk 0:01:55]} 20. Be4 {[%clk 0:01:25]} 20... g6 {[%clk 0:01:43.9]}
21. Qf4 {[%clk 0:01:15.5]} 21... f5 {[%clk 0:01:33.4]} 22. Bc2 {[%clk
0:00:52.2]} 22... Rd2 {[%clk 0:01:29]} 23. Rad1 {[%clk 0:00:49.8]} 23... Rfd8
{[%clk 0:01:24.3]} 24. Rxd2 {[%clk 0:00:48.1]} 24... Rxd2 {[%clk 0:01:25.2]} 25.
e4 {[%clk 0:00:44]} 25... Qd6 {[%clk 0:00:31.1]} 26. exf5 {[%clk 0:00:37.5]}
26... b4 {[%clk 0:00:30.3]} 27. Nc4 {[%clk 0:00:33.5]} 27... Nxc4 {[%clk
0:00:19.3]} 28. Qxc4+ {[%clk 0:00:34.4]} 28... Kg7 {[%clk 0:00:18]} 29. Bb3
{[%clk 0:00:33]} 29... Bf6 {[%clk 0:00:09.5]} 30. fxg6 {[%clk 0:00:29.4]} 1-0